fUST/lending_fUST_20251212
["ID","MTS","AMOUNT","RATE_DAILY","PERIOD"]
[398311912,1765522892195,-1168.71,0.00047671,120]
[398311913,1765522892257,-500.0,0.00047671,120]
[398311914,1765522892322,-1068.57,0.00047671,120]
[398311915,1765522892387,-500.0,0.00047671,120]
[398311916,1765522892449,-500.0,0.00047671,120]
[398311917,1765522892509,-500.0,0.00047671,120]
[398311918,1765522892576,-500.0,0.00047671,120]
[398311919,1765522892634,-500.0,0.00047671,120]
[398311920,1765522892693,-677.68,0.00047671,120]
[398311921,1765522892751,-500.0,0.00047671,120]
[398311922,1765522892808,-500.0,0.00047671,120]
[398311923,1765522892866,-500.0,0.00047671,120]
[398311924,1765522892923,-500.0,0.00047671,120]
[398311925,1765522892977,-500.0,0.00047671,120]
[398311926,1765522893040,-1045.51,0.00047671,120]
[398311927,1765522893100,-1292.34,0.00047671,120]
[398311928,1765522893169,-586.8,0.00047671,120]
[398311929,1765522893245,-550.61,0.00047671,120]
[398311930,1765522893321,-500.0,0.00047671,120]
[398311931,1765522893394,-743.42,0.00047671,120]
[398311932,1765522893463,-500.0,0.00047671,120]
[398311933,1765522893531,-500.0,0.00047671,120]
[398311934,1765522893599,-500.0,0.00047671,120]
[398311935,1765522893831,-951.52,0.00047671,120]
[398311936,1765522893897,-500.0,0.00047671,120]
[398311937,1765522893961,-500.0,0.00047671,120]
[398311938,1765522894023,-566.3,0.00047671,120]
[398311939,1765522894086,-503.14,0.00047671,120]
[398311940,1765522894149,-533.09,0.00047671,120]
[398311941,1765522894218,-500.0,0.00047671,120]
[398311942,1765522894284,-500.0,0.00047671,120]
[398311943,1765522894356,-500.0,0.00047671,120]
[398311944,1765522894424,-1229.87,0.00047671,30]
[398311945,1765522894498,-999.83,0.00047671,120]
[398311946,1765522894563,-1364.32,0.00047671,120]
[398311947,1765522894631,-1266.38,0.00047671,120]
[398311948,1765522894694,-640.23,0.00047671,120]
[398311949,1765522894764,-500.0,0.00047671,10]
[398311950,1765522894830,-500.0,0.00047671,120]
[398311951,1765522894895,-913.86,0.00047671,120]
[398311952,1765522894959,-844.69,0.00047671,120]
[398311953,1765522895024,-500.0,0.00047671,120]
[398311954,1765522895088,-500.0,0.00047671,120]
[398311955,1765522895153,-526.31,0.00047671,120]
[398311956,1765522895218,-500.0,0.00047671,120]
[398311957,1765522895283,-500.0,0.00047671,120]
[398311958,1765522895351,-500.0,0.00047671,120]
[398311959,1765522895418,-500.0,0.00047671,120]
[398311960,1765522895481,-500.0,0.00047671,120]
[398311961,1765522895545,-500.0,0.00047671,120]
[398311962,1765522895606,-737.19,0.00047671,120]
[398311963,1765522895666,-1907.91,0.00047671,120]
[398311964,1765522895730,-2056.31,0.00047671,120]
[398311965,1765522895798,-500.0,0.00047671,120]
[398311966,1765522895871,-500.0,0.00047671,120]
[398311967,1765522895945,-500.0,0.00047671,120]
[398311968,1765522896013,-500.0,0.00047671,120]
[398311969,1765522896082,-1267.12,0.00047671,120]
[398311970,1765522896150,-500.0,0.00047671,30]
[398311971,1765522896223,-500.0,0.00047671,120]
[398311972,1765522896292,-3009.47,0.00047671,120]
[398311973,1765522896366,-500.0,0.00047671,120]
[398311974,1765522896442,-500.0,0.00047671,120]
[398311975,1765522896509,-500.0,0.00047671,120]
[398311976,1765522896573,-500.0,0.00047671,120]
[398311977,1765522896636,-997.13,0.00047671,120]
[398311978,1765522896700,-500.0,0.00047671,120]
[398311979,1765522896765,-1152.48,0.00047671,120]
[398311980,1765522896826,-1451.93,0.00047671,120]
[398311981,1765522896887,-500.0,0.00047671,120]
[398311982,1765522896948,-500.0,0.00047671,120]
[398311983,1765522897007,-500.0,0.00047671,120]
[398311984,1765522897065,-500.0,0.00047671,120]
[398311985,1765522897128,-1664.42,0.00047671,120]
[398311986,1765522897201,-500.0,0.00047671,120]
[398311987,1765522897276,-1272.14,0.00047671,120]
[398311988,1765522897345,-500.0,0.00047671,120]
[398311989,1765522897414,-564.36,0.00047671,120]
[398311990,1765522897479,-500.0,0.00047671,120]
[398311991,1765522897544,-500.0,0.00047671,120]
[398311992,1765522897605,-797.77,0.00047671,120]
[398311993,1765522897671,-500.0,0.00047671,120]
[398311994,1765522897734,-1088.02,0.00047671,120]
[398311995,1765522897796,-500.0,0.00047671,120]
[398311996,1765522897873,-956.91,0.00047671,120]
[398311997,1765522897937,-500.0,0.00047671,120]
[398311998,1765522897996,-3199.14,0.00047671,120]
[398311999,1765522898057,-695.92,0.00047671,120]
[398312000,1765522898122,-500.0,0.00047671,120]
[398312001,1765522898200,-829.36,0.00047671,120]
[398312002,1765522898271,-500.0,0.00047671,120]
[398312003,1765522898345,-758.9,0.00047671,120]
[398312004,1765522898419,-500.0,0.00047671,120]
[398312005,1765522898492,-2256.18,0.00047671,30]
[398312006,1765522898563,-500.0,0.00047671,120]
[398312007,1765522898631,-500.0,0.00047671,120]
[398312008,1765522898699,-500.0,0.00047671,20]
[398312009,1765522898769,-500.0,0.00047671,120]
[398312010,1765522898855,-685.67,0.00047671,120]
[398312011,1765522898940,-500.0,0.00047671,120]
[398312012,1765522899012,-2049.37,0.00047671,120]
[398312013,1765522899075,-500.0,0.00047671,120]
[398312014,1765522899138,-500.0,0.00047671,120]
[398312015,1765522899201,-500.0,0.00047671,120]
[398312016,1765522899268,-500.0,0.00047671,120]
[398312017,1765522899336,-500.0,0.00047671,120]
[398312018,1765522899399,-500.0,0.00047671,120]
[398312019,1765522899467,-500.0,0.00047671,120]
[398312020,1765522899541,-500.0,0.00047671,120]
[398312021,1765522899602,-500.0,0.00047671,120]
[398312022,1765522899663,-500.0,0.00047671,120]
[398312023,1765522899727,-1495.74,0.00047671,120]
[398312024,1765522899792,-973.25,0.00047671,120]
[398312025,1765522899859,-228.73003836,0.00047671,100]
[398312026,1765522899928,-500.0,0.00047671,120]
[398312027,1765522899990,-922.08,0.00047671,120]
[398312028,1765522900049,-500.0,0.00047671,120]
[398312029,1765522900108,-2232.19,0.00047671,120]
[398312030,1765522900339,-616.57,0.00047671,120]
[398312031,1765522900410,-500.0,0.00047671,120]
[398312032,1765522900477,-2914.33,0.00047671,120]
[398312033,1765522900542,-1565.98,0.00047671,120]
[398312034,1765522900606,-2415.75,0.00047671,120]
[398312035,1765522900670,-605.24,0.00047671,120]
[398312036,1765522900732,-500.0,0.00047671,120]
[398312037,1765522900797,-6274.27,0.00047671,120]
[398312038,1765522900861,-736.06,0.00047671,120]
[398312039,1765522900923,-2391.73,0.00047671,120]
[398312040,1765522900985,-500.0,0.00047671,120]
[398312041,1765522901055,-2774.57,0.00047671,120]
[398312042,1765522901120,-500.0,0.00047671,120]
[398312043,1765522901183,-605.85,0.00047671,120]
[398312044,1765522901251,-500.0,0.00047671,120]
[398312045,1765522901320,-500.0,0.00047671,120]
[398312046,1765522901386,-178.41692043,0.00047671,120]
[398312047,1765522901452,-556.12230512,0.00047671,120]
[398312048,1765522901525,-789.88,0.00047671,120]
[398312049,1765522901587,-1658.63,0.00047671,120]
[398312050,1765522901647,-612.09,0.00047671,120]
[398312051,1765522901709,-500.0,0.00047671,120]
[398312052,1765522901773,-500.0,0.00047671,120]
[398312053,1765522901832,-935.39,0.00047671,120]
[398312054,1765522901889,-500.0,0.00047671,120]
[398312055,1765522901946,-500.0,0.00047671,120]
[398312056,1765522902006,-500.0,0.00047671,120]
[398312057,1765522902068,-500.0,0.00047671,120]
[398312058,1765522902132,-500.0,0.00047671,120]
[398312059,1765522902197,-587.6,0.00047671,120]
[398312060,1765522902260,-1139.63,0.00047671,120]
[398312061,1765522902327,-500.0,0.00047671,120]
[398312062,1765522902394,-500.0,0.00047671,120]
[398312063,1765522902458,-736.74,0.00047671,120]
[398312064,1765522902520,-1219.12,0.00047671,120]
[398312065,1765522902583,-500.0,0.00047671,120]
[398312066,1765522902643,-697.09,0.00047671,120]
[398312067,1765522902702,-500.0,0.00047671,120]
[398312068,1765522902764,-500.0,0.00047671,120]
[398312069,1765522902820,-500.0,0.00047671,120]
[398312070,1765522902876,-733.04,0.00047671,120]
[398312071,1765522902932,-500.0,0.00047671,120]
[398312072,1765522902986,-500.0,0.00047671,120]
[398312073,1765522903042,-500.0,0.00047671,120]
[398312074,1765522903099,-1414.72,0.00047671,120]
[398312075,1765522903157,-841.3,0.00047671,120]
[398312076,1765522903214,-1049.52,0.00047671,120]
[398312077,1765522903272,-500.0,0.00047671,120]
[398312078,1765522903338,-500.0,0.00047671,120]
[398312079,1765522903405,-500.0,0.00047671,120]
[398312080,1765522903472,-500.0,0.00047671,120]
[398312081,1765522903537,-1972.57,0.00047671,120]
[398312082,1765522903600,-500.0,0.00047671,120]
[398312083,1765522903665,-500.0,0.00047671,120]
[398312084,1765522903734,-1952.98,0.00047671,120]
[398312085,1765522903800,-500.0,0.00047671,120]
[398312086,1765522903865,-500.0,0.00047671,120]
[398312087,1765522903927,-500.0,0.00047671,120]
[398312088,1765522903988,-679.12,0.00047671,120]
[398312089,1765522904050,-1054.79,0.00047671,120]
[398312090,1765522904119,-503.4780984,0.00047671,120]
[398312091,1765522904183,-500.0,0.00047671,120]
[398312092,1765522904250,-715.78,0.00047671,120]
[398312093,1765522904319,-500.0,0.00047671,120]
[398312094,1765522904388,-500.0,0.00047671,120]
[398312095,1765522904457,-500.0,0.00047671,120]
[398312096,1765522904526,-500.0,0.00047671,120]
[398312097,1765522904593,-500.0,0.00047671,120]
[398312098,1765522904653,-500.0,0.00047671,120]
[398312099,1765522904715,-500.0,0.00047671,120]
[398312100,1765522904781,-1081.55,0.00047671,120]
[398312101,1765522904851,-500.0,0.00047671,120]
[398312102,1765522904919,-729.92,0.00047671,120]
[398312103,1765522904982,-500.0,0.00047671,120]
[398312104,1765522905055,-1090.86,0.00047671,120]
[398312105,1765522905123,-500.0,0.00047671,120]
[398312106,1765522905187,-1614.17,0.00047671,120]
[398312107,1765522905255,-500.0,0.00047671,120]
[398312108,1765522905324,-649.35,0.00047671,120]
[398312109,1765522905390,-1697.46,0.00047671,120]
[398312110,1765522905455,-992.34,0.00047671,120]
[398312111,1765522905522,-500.0,0.00047671,120]
[398312112,1765522905587,-1300.04,0.00047671,120]
[398312113,1765522905649,-578.23,0.00047671,120]
[398312114,1765522905713,-500.0,0.00047671,120]
[398312115,1765522905776,-500.0,0.00047671,120]
[398312116,1765522905841,-500.0,0.00047671,120]
[398312117,1765522905904,-568.21,0.00047671,120]
[398312118,1765522905967,-729.54,0.00047671,120]
[398312119,1765522906034,-500.0,0.00047671,30]
[398312120,1765522906107,-500.0,0.00047671,120]
[398312121,1765522906174,-500.0,0.00047671,120]
[398312122,1765522906241,-922.96,0.00047671,120]
[398312123,1765522906311,-500.0,0.00047671,120]
[398312124,1765522906386,-500.0,0.00047671,120]
[398312125,1765522906616,-500.0,0.00047671,120]
[398312126,1765522906676,-1563.64,0.00047671,120]
[398312127,1765522906736,-500.0,0.00047671,120]
[398312128,1765522906795,-546.73,0.00047671,120]
[398312129,1765522906854,-500.0,0.00047671,120]
[398312130,1765522906913,-500.0,0.00047671,120]
[398312131,1765522906971,-500.0,0.00047671,120]
[398312132,1765522907029,-500.0,0.00047671,120]
[398312133,1765522907087,-1436.1,0.00047671,120]
[398312134,1765522907148,-500.0,0.00047671,120]
[398312135,1765522907215,-500.0,0.00047671,120]
[398312136,1765522907279,-500.0,0.00047671,120]
[398312137,1765522907341,-3658.31,0.00047671,120]
[398312138,1765522907403,-500.0,0.00047671,120]
[398312139,1765522907466,-500.0,0.00047671,120]
[398312140,1765522907528,-500.0,0.00047671,120]
[398312141,1765522907588,-500.0,0.00047671,120]
[398312142,1765522907647,-1868.33,0.00047671,120]
[398312143,1765522907707,-500.0,0.00047671,120]
[398312144,1765522907770,-1057.05,0.00047671,120]
[398312145,1765522907827,-500.0,0.00047671,120]
[398312146,1765522907885,-500.0,0.00047671,120]
[398312147,1765522907941,-401.69708671,0.00047671,120]
[398312148,1765522907999,-500.0,0.00047671,120]
[398312149,1765522908058,-500.0,0.00047671,120]
[398312150,1765522908118,-500.0,0.00047671,120]
[398312151,1765522908177,-500.0,0.00047671,120]
[398312152,1765522908241,-500.0,0.00047671,120]
[398312153,1765522908310,-644.68,0.00047671,120]
[398312154,1765522908379,-500.0,0.00047671,120]
[398312155,1765522908449,-656.75,0.00047671,120]
[398312156,1765522908520,-500.0,0.00047671,120]
[398312157,1765522908585,-535.57,0.00047671,120]
[398312158,1765522908649,-922.66,0.00047671,120]
[398312159,1765522908717,-784.21,0.00047671,120]
[398312160,1765522908788,-500.0,0.00047671,120]
[398312161,1765522908854,-500.0,0.00047671,120]
[398312162,1765522908914,-500.0,0.00047671,120]
[398312163,1765522908972,-500.0,0.00047671,120]
[398312164,1765522909030,-548.87,0.00047671,120]
[398312165,1765522909088,-1751.02,0.00047671,120]
[398312166,1765522909147,-500.0,0.00047671,120]
[398312167,1765522909207,-500.0,0.00047671,120]
[398312168,1765522909267,-955.14,0.00047671,120]
[398312169,1765522909330,-500.0,0.00047671,120]
[398312170,1765522909392,-1266.64,0.00047671,120]
[398312171,1765522909457,-1346.87,0.00047671,120]
[398312172,1765522909521,-500.0,0.00047671,120]
[398312173,1765522909580,-500.0,0.00047671,120]
[398312174,1765522909640,-500.0,0.00047671,120]
[398312175,1765522909700,-500.0,0.00047671,120]
[398312176,1765522909764,-1121.68,0.00047671,120]
[398312177,1765522909825,-749.5,0.00047671,120]
[398312178,1765522909887,-500.0,0.00047671,120]
[398312179,1765522909948,-1926.13,0.00047671,120]
[398312180,1765522910005,-225.25762625,0.00047671,120]
[398312181,1765522910063,-750.11,0.00047671,120]
[398312182,1765522910121,-500.0,0.00047671,120]
[398312183,1765522910181,-500.0,0.00047671,120]
[398312184,1765522910242,-500.0,0.00047671,120]
[398312185,1765522910305,-500.0,0.00047671,120]
[398312186,1765522910369,-1774.29,0.00047671,120]
[398312187,1765522910430,-500.0,0.00047671,120]
[398312188,1765522910492,-906.11,0.00047671,120]
[398312189,1765522910555,-1069.48,0.00047671,120]
[398312190,1765522910614,-500.0,0.00047671,120]
[398312191,1765522910672,-817.8,0.00047671,120]
[398312192,1765522910731,-500.0,0.00047671,120]
[398312193,1765522910788,-722.62,0.00047671,120]
[398312194,1765522910847,-563.56,0.00047671,120]
[398312195,1765522910907,-500.0,0.00047671,120]
[398312196,1765522910970,-500.0,0.00047671,120]
[398312197,1765522911032,-738.71,0.00047671,120]
[398312198,1765522911093,-500.0,0.00047671,120]
[398312199,1765522911155,-500.0,0.00047671,120]
[398312200,1765522911219,-1327.54,0.00047671,120]
[398312201,1765522911281,-1870.77,0.00047671,120]
[398312202,1765522911352,-4322.65,0.00047671,120]
[398312203,1765522911419,-1387.48,0.00047671,120]
[398312204,1765522911486,-774.18,0.00047671,120]
[398312205,1765522911552,-500.0,0.00047671,120]
[398312206,1765522911611,-500.0,0.00047671,120]
[398312207,1765522911679,-757.52,0.00047671,120]
[398312208,1765522911753,-500.0,0.00047671,120]
[398312209,1765522911815,-669.1,0.00047671,120]
[398312210,1765522911875,-3787.67,0.00047671,120]
[398312211,1765522911935,-3523.76,0.00047671,120]
[398312212,1765522911993,-500.0,0.00047671,120]
[398312213,1765522912051,-500.0,0.00047671,120]
[398312214,1765522912108,-500.0,0.00047671,60]
[398312215,1765522912170,-2535.61,0.00047671,120]
[398312216,1765522912247,-500.0,0.00047671,120]
[398312217,1765522912311,-500.0,0.00047671,120]
[398312218,1765522912375,-500.0,0.00047671,120]
[398312219,1765522912659,-500.0,0.00047671,120]
[398312220,1765522912724,-500.0,0.00047671,120]
[398312221,1765522912786,-2058.42,0.00047671,120]
[398312222,1765522912847,-2491.8,0.00047671,120]
[398312223,1765522912907,-1170.96,0.00047671,120]
[398312224,1765522912966,-660.45,0.00047671,120]
[398312225,1765522913024,-535.86,0.00047671,120]
[398312226,1765522913088,-7174.87,0.00047671,120]
[398312227,1765522913155,-500.0,0.00047671,120]
[398312228,1765522913222,-500.0,0.00047671,120]
[398312229,1765522913284,-500.0,0.00047671,120]
[398312230,1765522913354,-1669.79,0.00047671,21]
[398312231,1765522913425,-500.0,0.00047671,120]
[398312232,1765522913495,-500.0,0.00047671,120]
[398312233,1765522913570,-500.0,0.00047671,120]
[398312234,1765522913638,-1933.08,0.00047671,120]
[398312235,1765522913707,-806.5,0.00047671,120]
[398312236,1765522913779,-500.0,0.00047671,120]
[398312237,1765522913845,-500.0,0.00047671,120]
[398312238,1765522913909,-1223.74,0.00047671,120]
[398312239,1765522913971,-500.0,0.00047671,120]
[398312240,1765522914033,-500.0,0.00047671,120]
[398312241,1765522914095,-500.0,0.00047671,120]
[398312242,1765522914159,-500.0,0.00047671,120]
[398312243,1765522914225,-748.91,0.00047671,120]
[398312244,1765522914294,-2969.42,0.00047671,120]
[398312245,1765522914363,-642.45,0.00047671,120]
[398312246,1765522914433,-2087.13,0.00047671,120]
[398312247,1765522914503,-500.0,0.00047671,120]
[398312248,1765522914569,-11900.94,0.00047671,120]
[398312249,1765522914631,-1138.15,0.00047671,120]
[398312250,1765522914694,-500.0,0.00047671,120]
[398312251,1765522914759,-1638.32,0.00047671,30]
[398312252,1765522914823,-11009.97,0.00047671,120]
[398312253,1765522914885,-741.59,0.00047671,120]
[398312254,1765522914951,-1502.82,0.00047671,120]
[398312255,1765522915015,-500.0,0.00047671,120]
[398312256,1765522915077,-153.6,0.00047671,120]
[398312257,1765522915142,-502.76654267,0.00047671,120]
[398312258,1765522915205,-500.0,0.00047671,120]
[398312259,1765522915271,-500.0,0.00047671,120]
[398312260,1765522915341,-730.6,0.00047671,120]
[398312261,1765522915408,-1750.4,0.00047671,120]
[398312262,1765522915476,-500.0,0.00047671,120]
[398312263,1765522915543,-1330.92,0.00047671,120]
[398312264,1765522915604,-500.0,0.00047671,120]
[398312265,1765522915662,-602.77,0.00047671,120]
[398312266,1765522915726,-5552.75,0.00047671,120]
[398312267,1765522915785,-500.0,0.00047671,120]
[398312268,1765522915848,-500.0,0.00047671,120]
[398312269,1765522915917,-500.0,0.00047671,120]
[398312270,1765522915988,-500.0,0.00047671,120]
[398312271,1765522916057,-2340.67,0.00047671,120]
[398312272,1765522916127,-434.75353856,0.00047671,120]
[398312273,1765522916196,-500.0,0.00047671,120]
[398312274,1765522916266,-773.07,0.00047671,120]
[398312275,1765522916336,-6965.18,0.00047671,120]
[398312276,1765522916405,-543.1,0.00047671,120]
[398312277,1765522916473,-869.94,0.00047671,120]
[398312278,1765522916536,-792.08,0.00047671,120]
[398312279,1765522916594,-1995.96,0.00047671,120]
[398312280,1765522916651,-829.2,0.00047671,120]
[398312281,1765522916709,-500.0,0.00047671,120]
[398312282,1765522916773,-2884.18,0.00047671,120]
[398312283,1765522916834,-500.0,0.00047671,120]
[398312284,1765522916895,-5726.32,0.00047671,120]
[398312285,1765522916954,-14362.59,0.00047671,120]
[398312286,1765522917012,-500.0,0.00047671,120]
[398312287,1765522917071,-16201.21,0.00047671,120]
[398312288,1765522917129,-1346.53,0.00047671,120]
[398312289,1765522917190,-588.3,0.00047671,120]
[398312290,1765522917252,-500.0,0.00047671,120]
[398312291,1765522917317,-500.0,0.00047671,120]
[398312292,1765522917380,-500.0,0.00047671,120]
[398312293,1765522917442,-500.0,0.00047671,60]
[398312294,1765522917506,-500.0,0.00047671,120]
[398312295,1765522917568,-3933.9,0.00047671,120]
[398312296,1765522917625,-500.0,0.00047671,120]
[398312297,1765522917685,-2194.05,0.00047671,120]
[398312298,1765522917746,-796.43,0.00047671,120]
[398312299,1765522917805,-500.0,0.00047671,120]
[398312300,1765522917864,-500.0,0.00047671,120]
[398312301,1765522917921,-1686.09,0.00047671,120]
[398312302,1765522917981,-14836.37,0.00047671,120]
[398312303,1765522918038,-500.0,0.00047671,120]
[398312304,1765522918096,-500.0,0.00047671,120]
[398312305,1765522918158,-1397.88,0.00047671,120]
[398312306,1765522918223,-1635.58,0.00047671,120]
[398312307,1765522918283,-500.0,0.00047671,120]
[398312308,1765522918350,-2118.27,0.00047671,120]
[398312309,1765522918421,-500.0,0.00047671,120]
[398312310,1765522918489,-1506.78,0.00047671,120]
[398312311,1765522918554,-500.0,0.00047671,120]
[398312312,1765522918619,-991.08,0.00047671,120]
[398312313,1765522918682,-1474.26,0.00047671,120]
[398312314,1765522918910,-500.0,0.00047671,120]
[398312315,1765522918972,-500.0,0.00047671,120]
[398312316,1765522919030,-500.0,0.00047671,120]
[398312317,1765522919093,-500.0,0.00047671,120]
[398312318,1765522919155,-2032.25,0.00047671,120]
[398312319,1765522919215,-2716.27,0.00047671,120]
[398312320,1765522919275,-1926.5,0.00047671,120]
[398312321,1765522919340,-500.0,0.00047671,120]
[398312322,1765522919404,-524.96,0.00047671,120]
[398312323,1765522919465,-559.01,0.00047671,120]
[398312324,1765522919527,-3558.85,0.00047671,120]
[398312325,1765522919588,-500.0,0.00047671,120]
[398312326,1765522919649,-500.0,0.00047671,120]
[398312327,1765522919720,-560.21,0.00047671,120]
[398312328,1765522919787,-1425.58,0.00047671,120]
[398312329,1765522919853,-536.6,0.00047671,120]
[398312330,1765522919919,-3156.52,0.00047671,60]
[398312331,1765522919984,-2895.12,0.00047671,120]
[398312332,1765522920055,-3356.79,0.00047671,120]
[398312333,1765522920127,-4128.24,0.00047671,120]
[398312334,1765522920203,-6550.78,0.00047671,120]
[398312335,1765522920283,-34959.56,0.00047671,120]
[398312336,1765522920355,-500.0,0.00047671,120]
[398312337,1765522920430,-500.0,0.00047671,120]
[398312338,1765522920505,-500.0,0.00047671,120]
[398312339,1765522920574,-4913.5,0.00047671,120]
[398312340,1765522920637,-500.0,0.00047671,120]
[398312341,1765522920699,-500.0,0.00047671,120]
[398312342,1765522920761,-827.77,0.00047671,120]
[398312343,1765522920824,-500.0,0.00047671,120]
[398312344,1765522920888,-2300.92,0.00047671,120]
[398312345,1765522920951,-3691.82,0.00047671,120]
[398312346,1765522921018,-2480.5,0.00047671,120]
[398312347,1765522921082,-500.0,0.00047671,120]
[398312348,1765522921156,-722.73,0.00047671,120]
[398312349,1765522921230,-4419.0,0.00047671,120]
[398312350,1765522921301,-831.5,0.00047671,120]
[398312351,1765522921369,-858.72,0.00047671,120]
[398312352,1765522921437,-500.0,0.00047671,120]
[398312353,1765522921506,-1198.81,0.00047671,120]
[398312354,1765522921572,-500.0,0.00047671,120]
[398312355,1765522921633,-7921.22,0.00047671,120]
[398312356,1765522921693,-1515.74,0.00047671,120]
[398312357,1765522921756,-500.0,0.00047671,120]
[398312358,1765522921819,-500.0,0.00047671,120]
[398312359,1765522921881,-500.0,0.00047671,120]
[398312360,1765522921941,-500.0,0.00047671,120]
[398312361,1765522922001,-500.0,0.00047671,120]
[398312362,1765522922061,-1233.38,0.00047671,120]
[398312363,1765522922123,-500.0,0.00047671,120]
[398312364,1765522922195,-1429.13,0.00047671,120]
[398312365,1765522922272,-960.89,0.00047671,120]
[398312366,1765522922341,-525.14,0.00047671,120]
[398312367,1765522922412,-841.86,0.00047671,120]
[398312368,1765522922493,-1001.38,0.00047671,120]
[398312369,1765522922573,-500.0,0.00047671,120]
[398312370,1765522922642,-1274.41,0.00047671,120]
[398312371,1765522922706,-500.0,0.00047671,120]
[398312372,1765522922770,-1401.45,0.00047671,120]
[398312373,1765522922828,-732.87,0.00047671,120]
[398312374,1765522922888,-500.0,0.00047671,120]
[398312375,1765522922949,-1013.62,0.00047671,120]
[398312376,1765522923010,-523.7844004,0.00047671,120]
[398312377,1765522923075,-528.57,0.00047671,120]
[398312378,1765522923140,-3258.92,0.00047671,120]
[398312379,1765522923206,-591.89,0.00047671,120]
[398312380,1765522923273,-812.78,0.00047671,120]
[398312381,1765522923347,-500.0,0.00047671,120]
[398312382,1765522923424,-761.67,0.00047671,120]
[398312383,1765522923501,-500.0,0.00047671,120]
[398312384,1765522923580,-2134.68,0.00047671,120]
[398312385,1765522923654,-500.0,0.00047671,120]
[398312386,1765522923727,-1600.42,0.00047671,120]
[398312387,1765522923798,-500.0,0.00047671,120]
[398312388,1765522923865,-2819.02,0.00047671,120]
[398312389,1765522923934,-500.0,0.00047671,30]
[398312390,1765522924005,-500.0,0.00047671,120]
[398312391,1765522924070,-500.0,0.00047671,120]
[398312392,1765522924137,-44117.77,0.00047671,120]
[398312393,1765522924201,-1318.73,0.00047671,120]
[398312394,1765522924267,-820.05,0.00047671,120]
[398312395,1765522924341,-7290.47,0.00047671,120]
[398312396,1765522924421,-1064.16,0.00047671,120]
[398312397,1765522924496,-500.0,0.00047671,120]
[398312398,1765522924570,-500.0,0.00047671,120]
[398312399,1765522924637,-500.0,0.00047671,120]
[398312400,1765522924704,-500.0,0.00047671,120]
[398312401,1765522924778,-670.09,0.00047671,120]
[398312402,1765522924845,-500.0,0.00047671,120]
[398312403,1765522924916,-500.0,0.00047671,120]
[398312404,1765522924986,-563.99,0.00047671,120]
[398312405,1765522925053,-1063.37,0.00047671,120]
[398312406,1765522925127,-6869.16,0.00047671,120]
[398312407,1765522925202,-501.00449878,0.00047671,120]
[398312408,1765522925279,-504.86003658,0.00047671,120]
[398312409,1765522925526,-500.0,0.00047671,120]
[398312410,1765522925596,-10539.81,0.00047671,120]
[398312411,1765522925662,-500.0,0.00047671,120]